Cogmind - Beta 12 @@@ ROGUE MODE // 2023.07.15 @ 12:32:27 Player: Senator Honkstrong Result: Destroyed by 8R-AWN with 8R-AWN's Boregun Performance ------------- Evolutions (0) 0 Regions Visited (3) 600 Robots Destroyed (36) 180 Value Destroyed (423) 423 Prototype IDs (25) 500 Alien Tech Used (0) 0 Bonus (-170) -170 TOTAL SCORE: 1533 Bonus ------- Aligned with FarCom 300 Friendly Fire -470 Cogmind --------- Core Integrity 0/250 Matter 9/300 Energy 82/100 System Corruption 0% Temperature Cool (30) Movement Core (450) Ox8 Location -10/Exiles Parts ------- > --- POWER (1) -------- (None) > --- PROPULSION (2) --- (None) > --- UTILITY (2) ------ Large Storage Unit Core Shielding > --- WEAPON (2) ------- Beam Cannon Light Assault Rifle > --- INVENTORY (15) --- Targeting Computer Power Shielding Skeleton Box Chronowheel Light Assault Rifle Light Assault Rifle Grenade Launcher Peak State ------------ > --- POWER ------------ Improved Ion Engine > --- PROPULSION ------- Light Treads Light Treads > --- UTILITY ---------- Large Storage Unit Hacking Suite > --- WEAPON ----------- Heavy Assault Rifle Grenade Launcher > --- INVENTORY -------- Light Treads Light Treads Targeting Computer Core Shielding Power Shielding Skeleton Box Chronowheel Beam Cannon Assault Rifle Light Assault Rifle Light Assault Rifle Light Assault Rifle Heavy Assault Rifle Heavy Assault Rifle Heavy Assault Rifle [Rating: 14] Favorites ----------- Power Ion Engine Engine Ion Engine Propulsion Light Treads Treads Light Treads Utility Hacking Suite Storage Large Storage Unit Hackware Hacking Suite Protection Power Shielding Weapon Medium Laser Energy Gun Medium Laser Energy Cannon Beam Cannon Ballistic Gun Heavy Assault Rifle Launcher Grenade Launcher Build | -11 -10 -10 -10 ------- Run | Jun Mat Min Exi Slots Evolved . | . . . . Power . | . . . . Propulsion . | . . . . Utility . | . . . . Weapon . | . . . . Parts Attached 34 | 6 16 2 10 Power 3 | 1 1 1 . Engine 3 | 1 1 1 . Core . | . . . . Reactor . | . . . . Propulsion 5 | 2 . 1 2 Treads 5 | 2 . 1 2 Leg . | . . . . Wheel . | . . . . Hover . | . . . . Flight . | . . . . Utility 6 | 1 4 . 1 Device . | . . . . Storage 3 | 1 2 . . Processor . | . . . . Hackware 1 | . 1 . . Protection 2 | . 1 . 1 Artifact . | . . . . Weapon 20 | 2 11 . 7 Energy Gun 3 | 2 1 . . Energy Cannon 2 | . 1 . 1 Ballistic Gun 10 | . 5 . 5 Ballistic Cannon . | . . . . Launcher 5 | . 4 . 1 Special Weapon . | . . . . Impact Weapon . | . . . . Slashing Weapon . | . . . . Piercing Weapon . | . . . . Special Melee Weapon . | . . . . Unidentified Prototypes . | . . . . Parts Lost 10 | . . . 10 Power 1 | . . . 1 Propulsion 4 | . . . 4 Utility . | . . . . Weapon 5 | . . . 5 Highest Loss Streak 9 | . . . 9 To Critical Strikes 5 | . . . 5 Average Slot Usage (%) 98 | . 99 100 95 Engine 13 | . 14 14 11 Treads 27 | . 28 28 26 Storage 14 | . 14 14 14 Hackware 11 | . 9 14 11 Protection 2 | . 4 . 2 Energy Gun 6 | . 14 . . Energy Cannon 6 | . 1 14 6 Ballistic Gun 12 | . 9 14 15 Launcher 2 | . 2 . 5 Naked Turns . | . . . . Heaviest Build 33 | 14 31 33 33 Greatest Support 40 | 40 40 40 40 Greatest Overweight (x) . | . . . . Average Overweight (x) . | . . . . Largest Inventory Capacity 15 | 8 15 15 15 Average Capacity 12 | 7 11 15 15 Most Carried 15 | . 15 15 15 Average Carried 10 | . 8 15 12 Final Capacity 15 | 8 15 15 15 Final Carried 15 | . 15 15 7 Class Distribution -------------------- 100% | Mutant Dominant Class ---------------- Mutant | -10/Materials Mutant | -10/Mines Mutant | -10/Exiles Resources | -11 -10 -10 -10 ----------- Run | Jun Mat Min Exi Matter Collected 1644 | 260 233 237 914 Remotely . | . . . . Salvage Created 848 | 375 385 48 40 Parts 82 | 36 39 7 . Haulers Intercepted 2 | . 2 . . Recyclers Shooed 1 | . 1 . . Parts Field Recycled . | . . . . Retrieved Matter . | . . . . Parts Self-Destructed . | . . . . Prevented . | . . . . Kills | -11 -10 -10 -10 ------- Run | Jun Mat Min Exi Combat Hostiles Destroyed 15 | . 11 . 4 Guns 7 | . 5 . 2 AOE 8 | . 6 . 2 Classes Destroyed 10 | 3 5 1 1 Worker 5 | 4 1 . . Builder 2 | . . 2 . Tunneler 10 | 9 . 1 . Hauler 2 | . 2 . . Recycler 1 | 1 . . . Operator 2 | . 2 . . Watcher 3 | . 3 . . Swarmer 9 | . 9 . . Grunt 2 | . 2 . . Assembled 7 | . . . 7 Best Kill Streak 6 | 5 6 1 4 Combat Bots Only 6 | . 6 . 4 Max Kills in Single Turn 3 | 1 3 1 3 Gunslinging . | . . . . Exploded 3 | . 3 . 2 Melee . | . . . . Uniques/NPCs Destroyed . | . . . . Combat | -11 -10 -10 -10 -------- Run | Jun Mat Min Exi Damage Taken 1654 | . 211 . 1443 Core 262 | . 46 . 216 Absorbed by Shields . | . . . . Redirected to Shielding 54 | . 8 . 46 Core Remaining (%) 100 | 100 . . . Volleys Fired 157 | 28 66 1 62 Largest 2 | 2 2 2 2 Hottest 100 | 100 100 83 80 Shots Fired 306 | 56 126 2 122 Gun 278 | 56 110 1 111 Cannon 14 | . 4 1 9 Launcher 14 | . 12 . 2 Special . | . . . . Kinetic 159 | . 47 1 111 Thermal 133 | 56 67 1 9 Explosive 14 | . 12 . 2 Electromagnetic . | . . . . Robot Hit Streak 13 | 7 8 4 13 Robot Miss Streak 7 | 3 7 . 3 Penetration Max . | . . . . Secondary Targets 2 | . 1 . 1 Max Gunslinging Chain 1 | . 1 . 1 Shots Hit Robots 171 | 27 55 1 88 Core Hits 72 | 15 32 2 23 Critical Kills . | . . . . Critical Parts Destroyed . | . . . . Critical Strikes 5 | 3 2 . . Burn 5 | 3 2 . . Melee Attacks . | . . . . Impact . | . . . . Slashing . | . . . . Piercing . | . . . . Sneak Attacks . | . . . . Combat Hostiles . | . . . . Follow-up Attacks . | . . . . Damage Inflicted 2776 | 362 906 46 1462 Guns 2050 | 362 566 . 1122 Cannons 211 | . 70 17 124 Explosions 479 | . 263 . 216 Melee . | . . . . Ramming 36 | . 7 29 . Kinetic 1312 | . 190 . 1122 Thermal 949 | 362 446 17 124 Explosive 479 | . 263 . 216 Electromagnetic . | . . . . Impact . | . . . . Slashing . | . . . . Piercing . | . . . . Highest Corruption . | . . . . Average Corruption . | . . . . Corruption Purged . | . . . . Corruption Blocked . | . . . . Overload Shots . | . . . . Overflow Damage 12 | . 5 . 7 Projectiles 5 | . 5 . . Explosions 7 | . . . 7 Melee . | . . . . Knockbacks . | . . . . Impact . | . . . . Kinetic . | . . . . Secondary . | . . . . Self-Inflicted Damage 27 | . 27 . . Shots 2 | . 2 . . Rammed 5 | . 1 4 . Targets Rammed 6 | . 1 5 . Kicked . | . . . . Crushed 1 | . . 1 . Highest Temperature 312 | 195 312 24 30 Average Temperature 52 | 62 51 13 13 Received Heat Transfer 30 | . 30 . . Siege Activations . | . . . . Robots Corrupted . | . . . . Combat Hostiles . | . . . . Parts Fried . | . . . . Impact Corruptions . | . . . . Robots Melted . | . . . . Combat Hostiles . | . . . . Parts Melted 3 | 3 . . . Heat Transferred 2764 | 1295 1369 37 63 Parts Sabotaged . | . . . . Parts Stolen . | . . . . Parts Stripped . | . . . . Power Chain Reactions . | . . . . Missiles Intercepted . | . . . . Alert | -11 -10 -10 -10 ------- Run | Jun Mat Min Exi Peak Influence 214 | 70 214 40 . Initial 45 | . 45 35 . Average 53 | 35 79 14 . Maximum Alert Level 1 | . 1 . . Low Security (%) 94 | 100 89 100 . Level 1 5 | . 10 . . Level 2 . | . . . . Level 3 . | . . . . Level 4 . | . . . . Level 5 . | . . . . High Security . | . . . . Max Security . | . . . . Squads Dispatched 2 | . 2 . . Investigation . | . . . . Extermination . | . . . . Reinforcement 2 | . 2 . . Assault . | . . . . Garrison . | . . . . Intercept . | . . . . Searches Triggered . | . . . . Construction Impeded . | . . . . Haulers Reinforced . | . . . . Active Scanning Responses . | . . . . Cargo Convoy Interrupts . | . . . . Stealth | -11 -10 -10 -10 --------- Run | Jun Mat Min Exi Distress Signals . | . . . . Communications Jammed . | . . . . Distress Signals . | . . . . Times Spotted 26 | . 20 1 5 Peak Tracking Total 6 | . 5 2 6 Tactical Retreats . | . . . . Traps | -11 -10 -10 -10 ------- Run | Jun Mat Min Exi Traps Triggered . | . . . . Indirectly . | . . . . Trap Hack Attempts . | . . . . Triggered . | . . . . Disarmed . | . . . . Reprogrammed . | . . . . Reused . | . . . . Traps Extracted . | . . . . Installed . | . . . . Triggered . | . . . . Machines | -11 -10 -10 -10 ---------- Run | Jun Mat Min Exi Machines Disabled 12 | . 9 . 3 Max in Single Turn 2 | . 2 . 1 Machines Repaired . | . . . . Machines Sabotaged . | . . . . Overloaded Fab Kills . | . . . . Hacking | -11 -10 -10 -10 --------- Run | Jun Mat Min Exi Machines Accessed 9 | . 8 . 1 Terminals 6 | . 6 . . Fabricators . | . . . . Repair Stations . | . . . . Recycling Units 2 | . 2 . . Scanalyzers . | . . . . Garrison Access . | . . . . Total Hacks 25 | . 24 . 1 Successful 11 | . 10 . 1 Failed 13 | . 13 . . Catastrophic 2 | . 2 . . Database Lockouts 1 | . 1 . . Manual 14 | . 13 . 1 Terminals 17 | . 17 . . Fabricators . | . . . . Repair Stations . | . . . . Recycling Units 7 | . 7 . . Scanalyzers . | . . . . Garrison Access . | . . . . Terminal Hacks 7 | . 6 . 1 Robot Analysis 2 | . 2 . . Prototype ID Bank 1 | . 1 . . Unreport Threat 3 | . 3 . . EX-Prototype ID Bank 1 | . . . 1 Fabricator Hacks . | . . . . Repair Station Hacks . | . . . . Recycling Unit Hacks 1 | . 1 . . Retrieve Components 1 | . 1 . . Scanalyzer . | . . . . Garrison Access Hacks . | . . . . Unauthorized Hacks 3 | . 3 . . Terminals 3 | . 3 . . Botnet 3 | . 3 . . Fabricators . | . . . . Repair Stations . | . . . . Recycling Units . | . . . . Scanalyzers . | . . . . Garrison Access . | . . . . Data Cores Recovered . | . . . . Used . | . . . . Hacking Detections 8 | . 8 . . Full Trace Events 1 | . 1 . . Feedback Events . | . . . . Feedback Blocked . | . . . . Robot Schematics Acquired . | . . . . Robots Built . | . . . . Authchips . | . . . . Time . | . . . . Total Robot Build Rating . | . . . . Part Schematics Acquired . | . . . . Parts Built . | . . . . Authchips . | . . . . Time . | . . . . Total Part Build Rating . | . . . . Parts Repaired . | . . . . Time . | . . . . Parts Recycled . | . . . . Recycled Matter . | . . . . Retrieved Matter . | . . . . Retrieved Components . | . . . . Parts Scanalyzed . | . . . . Part Schematics Acquired . | . . . . Parts Damaged . | . . . . Bothacking | -11 -10 -10 -10 ------------ Run | Jun Mat Min Exi Used RIF Installer . | . . . . Robots Hacked . | . . . . Non-combat . | . . . . Combat . | . . . . Robot Hacks Applied . | . . . . Relay Couplers Released . | . . . . Fabnet Peak Effective % . | . . . . Robots Rewired . | . . . . Allies Hacked . | . . . . Hacks Repelled . | . . . . Allies | -11 -10 -10 -10 -------- Run | Jun Mat Min Exi Total Allies 4 | . . 4 . Largest Group 4 | . . 4 3 Highest-Rated Group 71 | . . 71 40 Highest-Rated Ally 31 | . . 31 16 Total Orders 1 | . . . 1 STAY 1 | . . . 1 Ally Attacks 10 | . . . 10 Total Damage 64 | . . . 64 Kills . | . . . . Allies Corrupted . | . . . . Allies Melted . | . . . . Intel | -11 -10 -10 -10 ------- Run | Jun Mat Min Exi Robot Analysis Total 2 | . 2 . . Derelict Logs Recovered 1 | . . 1 . Drone Launches . | . . . . Drone Recoveries . | . . . . Exploration | -11 -10 -10 -10 ------------- Run | Jun Mat Min Exi Turns Passed 4449 | 342 1887 1139 1081 Spaces Moved 2232 | 146 934 694 458 Core 5 | 5 . . . Treads 2227 | 141 934 694 458 Legs . | . . . . Wheels . | . . . . Hover . | . . . . Flight . | . . . . Fastest Speed 50 | 50 160 160 160 Average Speed 159 | 156 160 160 160 Slowest Speed 160 | 160 160 160 160 Overloaded Moves . | . . . . Propulsion Burnouts . | . . . . Robots Hopped . | . . . . Cave-ins Triggered . | . . . . Exploration Rate (%) 65 | 6 96 99 60 Regions Visited 3 Branch Regions 2 Pre-discovered Areas 1 | . . 1 . Known Exits Taken . | . . . . Unknown Exits Taken 3 | 1 1 1 . Scrap Searched 1 | . . 1 . Spaces Dug . | . . . . Terrain Destroyed 160 | . 154 . 6 Melee . | . . . . Projectile . | . . . . AOE 160 | . 154 . 6 Terrain Rammed . | . . . . Walls Destroyed . | . . . . Machines Disabled . | . . . . Actions | -11 -10 -10 -10 --------- Run | Jun Mat Min Exi Total 2818 | 201 1206 719 692 Wait 330 | 22 168 14 126 Move 2229 | 145 933 693 458 Hop . | . . . . Pick Up 34 | . 15 1 18 Fast Attach 9 | 6 3 . . Attach 8 | . 1 . 7 Detach 1 | . 1 . . Swap 17 | . 12 2 3 Drop 27 | . 6 3 18 Fire 157 | 28 66 1 62 Melee . | . . . . Ram . | . . . . Kick . | . . . . Crush 6 | . 1 5 . Escape Stasis . | . . . . Rewire . | . . . . Trap . | . . . . Miscellaneous . | . . . . Route ------- -11/Junkyard -10/Materials (discovered 4 exits: [*Mat x3] / [*Min]) -10/Mines (discovered 3 exits: [*Mat x2] / *Exi) -10/Exiles History --------- Turn | Location | Event 9 | -11/Junkyard | Discovered new exit (range 15) 343 | -11/Junkyard | Entered Materials 344 | -10/Materials | Build established: Mutant 472 | -10/Materials | Discovered new exit (range 5) 559 | -10/Materials | Discovered new exit (range 14) 960 | -10/Materials | Discovered new exit (range 16) 1032 | -10/Materials | Central database locked down 1402 | -10/Materials | Discovered new exit (range 7) 2230 | -10/Materials | Entered Mines 2286 | -10/Mines | Met a Derelict bent on vengeance 2317 | -10/Mines | Discovered new exit (range 12) 2502 | -10/Mines | Joined a pair of Derelicts in attacking an 0b10 outpost 2582 | -10/Mines | Deemed a non-threat by the Exiles lab entrance 2582 | -10/Mines | Discovered new exit (range 5) 2838 | -10/Mines | Learned location of Zion (-7) 2906 | -10/Mines | Received a Mining Laser from a helpful Derelict 3017 | -10/Mines | Discovered new exit (range 4) 3033 | -10/Mines | Assisted by bots powering up and referring to "LRC-V3" 3369 | -10/Mines | Entered Exiles 3369 | -10/Exiles | Accompanied by 3 allies 3483 | -10/Exiles | Met 8R-AWN 3507 | -10/Exiles | Met EX-HEX 3571 | -10/Exiles | Met EX-DEC 3937 | -10/Exiles | Met EX-BIN 3960 | -10/Exiles | Aligned with FarCom system 3961 | -10/Exiles | Given EX-Vault access code 4014 | -10/Exiles | Opened EX-Vault 4024 | -10/Exiles | Found Chronowheel 4028 | -10/Exiles | Found Skeleton Box 4060 | -10/Exiles | Warned to stay clear of 0b10 Research branches 4257 | -10/Exiles | Attacked by the Exiles 4346 | -10/Exiles | Core integrity fell below 50% 4430 | -10/Exiles | Core integrity fell below 20% 4450 | -10/Exiles | Destroyed by 8R-AWN with 8R-AWN's Boregun Last Messages --------------- 04348_ Hvy. Assault Rifle destroyed. 04352_ Penetrated by HV Slug. 04356_ HV Slug penetrates Assembled Analyzer. 04361_ Penetrated by HV Slug. 04365_ Critical hit (Destroy). 04365_ Hvy. Assault Rifle destroyed. 04369_ Penetrated by HV Slug. 04369_ Lgt. Treads destroyed. 04369_ Penetrated by HV Slug. 04382_ HV Slug penetrates Machine. 04386_ Penetrated by HV Slug. 04386_ HV Slug penetrates Assembled Analyzer. 04390_ Penetrated by HV Slug. 04395_ Critical hit (Destroy). 04395_ Lgt. Treads destroyed. 04399_ Penetrated by HV Slug. 04420_ Hvy. Assault Rifle destroyed. 04429_ Penetrated by HV Slug. 04446_ Assault Rifle destroyed. 04450_ Penetrated by HV Slug. Map ----- +----------------------------------------------------+ | """#?????????????????????????????????? | | """#?????????????????????????????????? | | """#?????????????????????????????????? | | """#?????????????????????????????????? | | """"?????????????????????????????????? | | """#?????????????????????????????????? | | " "X" """"?????????????????????????????????? | | " """ #?????????????????????????????????? | | " """""""""#?????????????????????????????????? | | " ###########?????????????????????????????????? | | " #???????????????????????????????????????????? | | #???????????????????????????????????????????? | | ##??????????????????????????????????????????? | | ##???###########???????????????????????????? | | #####"""""""""##??????????????????????????? | | " """ """"##?????????????????????????? | | " " #?????????????????????????? | | """#?????????????????????????? | | a"#???????????#####?????????? | | " "##?????????##" #?????????? | | "###???????#" #?????????? | | """ ""#??????##" ##????????? | | ##""" =="#????### ###??????? | | ?#####""" %[%!##???# ######## | | ?????##""" *%=!!##?## #""""## | | ??????#"""" ! @!!### | | ??????#"" ! g ## | | ??????"""" #### | | ?????" ""#?#"""""#### | | ???" #" ##?#######??#### | | ??? ######??????????????# | | ??? ##???????????????????? | | ??? " ##????????????????????? | | ?? "" " % ""#?????????????????????? | | ?? ##""" " " ""#" %%% %"##?????????????????????? | | ?????####""" """## "##??????????????????????? | | ????????###""""#?## # #???????????????????????? | | ???????????##?????#######????????????????????????? | | ?????????????????????????????????????????????????? | | ?????????????????????????????????????????????????? | | ?????????????????????????????????????????????????? | | ?????????????????????????????????????????????????? | | ?????????????????????????????????????????????????? | | ?????????????????????????????????????????????????? | | ?????????????????????????????????????????????????? | | ?????????????????????????????????????????????????? | | ?????????????????????????????????????????????????? | | ?????????????????????????????????????????????????? | | ?????????????????????????????????????????????????? | | ?????????????????????????????????????????????????? | +----------------------------------------------------+ Best States ------------- Heat Dissipation 25 Energy Generation 12 Energy Capacity 265 Matter Stores 300 Matter Capacity 300 Sight Range 16 Terrain Scan Density 10 Core Shielding 20 Power Shielding 33 Evasion (%) 40 Recoil Reduction 2 Offensive Hacking 10 Item Schematics ----------------- None Robot Schematics ------------------ None Fabricated ------------ Nothing Alien Tech Used ----------------- None Achievements -------------- None Challenges ------------ None Game ------ Seed MobileAntimatterAmplifier Manual? 0 Play Time 00:23:51 Cumulative 42.4 hours Start 2023.07.15 @ 12:11:10 End 2023.07.15 @ 12:32:27 Sessions 1 Manual Loads 0 Difficulty Rogue Special Mode None Game No. 33 Rogue 33 Adventurer 0 Explorer 0 Win Type - Total 0 Types 0/0/0/0/0/0/0/0/0 Lore% 28 Gallery% 33 Achievement% 30 Wizard Run 0 Options --------- ASCII 0 Keyboard 0 Movement Mouse Keybinds 0 Fullscreen 1 Font 18/SmallcapsGlow Map View 76x50 Tactical HUD 1 Map Filters NONE Filters NONE Steam X RUN: e18bfa18-a147-4e38-902e-f5720be705f3